Cogmind - Beta 10.2 @@@ ROGUE MODE // 2021.11.05 @ 22:16:22 Player: Saya Result: Destroyed by G-47 Trooper with Particle Gun Performance ------------- Evolutions (0) 0 Regions Visited (2) 400 Robots Destroyed (17) 85 Value Destroyed (430) 430 Prototype IDs (0) 0 Alien Tech Used (0) 0 Bonus (0) 0 TOTAL SCORE: 915 Bonus ------- None Cogmind --------- Core Integrity 0/250 Matter 285/300 Energy 96/125 System Corruption 5% Temperature Cool (9) Movement Rolling (110) Ox3 Location -10/Mines Parts ------- > --- POWER (1) -------- Light Ion Engine > --- PROPULSION (2) --- Aluminum Leg Wheel > --- UTILITY (2) ------ High-capacity Storage Unit Improved Terrain Scanner > --- WEAPON (2) ------- (None) > --- INVENTORY (12) --- Light Nuclear Core Aluminum Leg Compact Wheel Medium Storage Unit Medium Storage Unit Large Storage Unit Sensor Array Signal Interpreter Peak State ------------ > --- POWER ------------ Ion Engine > --- PROPULSION ------- Aluminum Leg Aluminum Leg > --- UTILITY ---------- High-capacity Storage Unit Improved Terrain Scanner > --- WEAPON ----------- EM Pulse Gun Light Assault Rifle > --- INVENTORY -------- Ion Engine Light Nuclear Core Wheel Compact Wheel Medium Storage Unit Medium Storage Unit Large Storage Unit Sensor Array Grenade Launcher [Rating: 9] Favorites ----------- Power Ion Engine Engine Ion Engine Propulsion Aluminum Leg Leg Aluminum Leg Wheel Wheel Utility Improved Terrain Scanner Device Improved Terrain Scanner Storage High-capacity Storage Unit Weapon EM Pulse Gun Energy Gun EM Pulse Gun Ballistic Gun Light Assault Rifle Launcher Grenade Launcher Build | -11 -10 -10 ------- Run | Scr Mat Min Slots Evolved . | . . . Power . | . . . Propulsion . | . . . Utility . | . . . Weapon . | . . . Parts Attached 14 | 1 10 3 Power 3 | . 2 1 Engine 3 | . 2 1 Core . | . . . Reactor . | . . . Propulsion 3 | . 2 1 Treads . | . . . Leg 2 | . 2 . Wheel 1 | . . 1 Hover . | . . . Flight . | . . . Utility 2 | 1 1 . Device 1 | 1 . . Storage 1 | . 1 . Processor . | . . . Hackware . | . . . Protection . | . . . Artifact . | . . . Weapon 6 | . 5 1 Energy Gun 2 | . 2 . Energy Cannon . | . . . Ballistic Gun 1 | . 1 . Ballistic Cannon . | . . . Launcher 3 | . 2 1 Special Weapon . | . . . Impact Weapon . | . . . Slashing Weapon . | . . . Piercing Weapon . | . . . Special Melee Weapon . | . . . Unidentified Prototypes . | . . . Parts Lost 8 | . 4 4 Power 3 | . 2 1 Propulsion 1 | . . 1 Utility . | . . . Weapon 4 | . 2 2 Highest Loss Streak 4 | . 2 4 Average Slot Usage (%) 94 | . 96 85 Engine 13 | . 13 14 Leg 28 | . 28 28 Device 14 | . 14 14 Storage 14 | . 14 14 Energy Gun 11 | . 15 . Ballistic Gun 9 | . 9 11 Launcher 1 | . . 2 Naked Turns . | . . . Heaviest Build 42 | 12 41 42 Greatest Support 20 | 20 20 20 Greatest Overweight (x) 3 | . 2 3 Average Overweight (x) 1 | . 1 1 Largest Inventory Capacity 12 | 6 12 12 Average Capacity 10 | 6 10 12 Most Carried 12 | 6 12 11 Average Carried 8 | 5 8 10 Final Capacity 12 | 6 12 12 Final Carried 11 | 4 11 8 Class Distribution -------------------- 70% | Mutant 29% | Scavenger-Mutant Dominant Class ---------------- Mutant | -10/Materials Scavenger-Mutant | -10/Mines Resources | -11 -10 -10 ----------- Run | Scr Mat Min Matter Collected 428 | 210 114 104 Remotely . | . . . Salvage Created 559 | 128 419 12 Parts 37 | 6 31 . Haulers Intercepted 2 | . 2 . Recyclers Shooed 2 | 1 1 . Parts Field Recycled . | . . . Retrieved Matter . | . . . Parts Self-Destructed . | . . . Prevented . | . . . Kills | -11 -10 -10 ------- Run | Scr Mat Min Combat Hostiles Destroyed 11 | . 10 1 Guns 4 | . 3 1 AOE 7 | . 7 . Classes Destroyed 8 | 2 5 1 Builder 1 | . 1 . Tunneler 1 | 1 . . Hauler 2 | . 2 . Recycler 1 | 1 . . Operator 1 | . 1 . Watcher 1 | . 1 . Grunt 10 | . 10 . Assembled 1 | . . 1 Best Kill Streak 4 | 2 4 1 Combat Bots Only 4 | . 4 1 Max Kills in Single Turn 3 | 1 3 1 Gunslinging . | . . . Exploded 3 | . 3 . Melee . | . . . Uniques/NPCs Destroyed . | . . . Combat | -11 -10 -10 -------- Run | Scr Mat Min Damage Taken 954 | . 613 341 Core 250 | . 172 78 Absorbed by Shields . | . . . Core Remaining (%) 100 | 100 . . Volleys Fired 64 | 5 56 3 Largest 2 | 2 2 1 Hottest 80 | 80 80 20 Shots Fired 94 | 10 81 3 Gun 84 | 10 71 3 Cannon . | . . . Launcher 10 | . 10 . Special . | . . . Kinetic 40 | . 37 3 Thermal . | . . . Explosive 10 | . 10 . Electromagnetic 44 | 10 34 . Robot Hit Streak 11 | 5 11 2 Robot Miss Streak 6 | 1 6 1 Penetration Max . | . . . Secondary Targets . | . . . Shots Hit Robots 54 | 7 45 2 Core Hits 37 | 3 31 3 Critical Hits . | . . . Critical Kills . | . . . Critical Parts Destroyed . | . . . Melee Attacks . | . . . Impact . | . . . Slashing . | . . . Piercing . | . . . Sneak Attacks . | . . . Combat Hostiles . | . . . Follow-up Attacks . | . . . Damage Inflicted 1409 | 93 1287 29 Guns 604 | 93 482 29 Cannons . | . . . Explosions 805 | . 805 . Melee . | . . . Ramming . | . . . Kinetic 237 | . 208 29 Thermal . | . . . Explosive 805 | . 805 . Electromagnetic 367 | 93 274 . Impact . | . . . Slashing . | . . . Piercing . | . . . Highest Corruption 5 | . 2 5 Average Corruption 2 | . 1 2 Corruption Purged . | . . . Effects 10 | . 7 3 Message Errors 2 | . 1 1 Heat Flow Errors 2 | . 2 . Energy Discharges 3 | . 3 . Data Loss (minor) 2 | . . 2 Weapon Failures 1 | . 1 . Overload Shots . | . . . Overflow Damage 35 | . 35 . Projectiles . | . . . Explosions 35 | . 35 . Melee . | . . . Knockbacks . | . . . Impact . | . . . Kinetic . | . . . Secondary . | . . . Self-Inflicted Damage . | . . . Shots . | . . . Rammed . | . . . Targets Rammed . | . . . Kicked . | . . . Crushed . | . . . Highest Temperature 269 | 90 269 2 Average Temperature 77 | 47 82 2 Received Heat Transfer 431 | . 342 89 Siege Activations . | . . . Robots Corrupted . | . . . Combat Hostiles . | . . . Parts Fried . | . . . Impact Corruptions . | . . . Robots Melted . | . . . Combat Hostiles . | . . . Parts Melted . | . . . Heat Transferred . | . . . Parts Sabotaged . | . . . Parts Stolen . | . . . Parts Stripped . | . . . Power Chain Reactions . | . . . Missiles Intercepted . | . . . Alert | -11 -10 -10 ------- Run | Scr Mat Min Peak Influence 212 | 10 212 64 Initial 58 | . 6 58 Average 95 | 7 112 59 Maximum Alert Level 1 | . 1 . Low Security (%) 91 | 100 88 100 Level 1 8 | . 11 . Level 2 . | . . . Level 3 . | . . . Level 4 . | . . . Level 5 . | . . . High Security . | . . . Max Security . | . . . Squads Dispatched 3 | . 3 . Investigation 1 | . 1 . Extermination . | . . . Reinforcement 2 | . 2 . Assault . | . . . Garrison . | . . . Intercept . | . . . Construction Impeded . | . . . Haulers Reinforced . | . . . Stealth | -11 -10 -10 --------- Run | Scr Mat Min Distress Signals 3 | . 2 1 Communications Jammed . | . . . Distress Signals . | . . . Times Spotted 30 | . 21 9 Peak Tracking Total 6 | . 5 6 Tactical Retreats 4 | . 2 2 Traps | -11 -10 -10 ------- Run | Scr Mat Min Traps Triggered 3 | . 3 . Indirectly . | . . . Trap Hack Attempts . | . . . Triggered . | . . . Disarmed . | . . . Reprogrammed . | . . . Reused . | . . . Traps Extracted . | . . . Installed . | . . . Triggered . | . . . Machines | -11 -10 -10 ---------- Run | Scr Mat Min Machines Disabled 1 | . 1 . Max in Single Turn 1 | . 1 . Machines Sabotaged . | . . . Garrisons Compromised . | . . . Overloaded Fab Kills . | . . . Fab Network Shutdowns . | . . . Hacking | -11 -10 -10 --------- Run | Scr Mat Min Machines Accessed 4 | . 3 1 Terminals 4 | . 3 1 Fabricators . | . . . Repair Stations . | . . . Recycling Units . | . . . Scanalyzers . | . . . Garrison Access . | . . . Total Hacks 12 | . 9 3 Successful 5 | . 4 1 Failed 7 | . 5 2 Catastrophic 2 | . 2 . Database Lockouts . | . . . Manual 9 | . 6 3 Terminals 12 | . 9 3 Fabricators . | . . . Repair Stations . | . . . Recycling Units . | . . . Scanalyzers . | . . . Garrison Access . | . . . Terminal Hacks 3 | . 2 1 Locate Traps 1 | . 1 . Zone Layout 2 | . 1 1 Fabricator Hacks . | . . . Repair Station Hacks . | . . . Recycling Unit Hacks . | . . . Scanalyzer . | . . . Garrison Access Hacks . | . . . Unauthorized Hacks 2 | . 2 . Terminals 2 | . 2 . Botnet 2 | . 2 . Fabricators . | . . . Repair Stations . | . . . Recycling Units . | . . . Scanalyzers . | . . . Garrison Access . | . . . Data Cores Recovered . | . . . Used . | . . . Hacking Detections 4 | . 3 1 Full Trace Events . | . . . Feedback Events . | . . . Feedback Blocked . | . . . Robot Schematics Acquired . | . . . Robots Built . | . . . Matter . | . . . Time . | . . . Total Robot Build Rating . | . . . Part Schematics Acquired . | . . . Parts Built . | . . . Matter . | . . . Time . | . . . Total Part Build Rating . | . . . Parts Repaired . | . . . Time . | . . . Parts Recycled . | . . . Recycled Matter . | . . . Retrieved Matter . | . . . Retrieved Components . | . . . Parts Scanalyzed . | . . . Part Schematics Acquired . | . . . Parts Damaged . | . . . Bothacking | -11 -10 -10 ------------ Run | Scr Mat Min Used RIF Installer . | . . . Robots Hacked . | . . . Non-combat . | . . . Combat . | . . . Robot Hacks Applied . | . . . Relay Couplers Released . | . . . Robots Rewired . | . . . Allies Hacked . | . . . Hacks Repelled . | . . . Allies | -11 -10 -10 -------- Run | Scr Mat Min Total Allies . | . . . Largest Group . | . . . Highest-Rated Group . | . . . Highest-Rated Ally . | . . . Total Orders . | . . . Ally Attacks . | . . . Total Damage . | . . . Kills . | . . . Allies Corrupted . | . . . Allies Melted 1 | . . 1 Intel | -11 -10 -10 ------- Run | Scr Mat Min Robot Analysis Total . | . . . Derelict Logs Recovered . | . . . Drone Launches . | . . . Drone Recoveries . | . . . Exploration | -11 -10 -10 ------------- Run | Scr Mat Min Turns Passed 876 | 55 641 180 Spaces Moved 441 | 27 304 110 Core . | . . . Treads . | . . . Legs 437 | 27 304 106 Wheels 4 | . . 4 Hover . | . . . Flight . | . . . Fastest Speed 110 | 120 120 110 Average Speed 152 | 120 155 153 Slowest Speed 180 | 120 180 180 Overloaded Moves . | . . . Propulsion Burnouts . | . . . Robots Hopped . | . . . Cave-ins Triggered . | . . . Exploration Rate (%) 31 | 3 67 23 Regions Visited 2 Branch Regions 1 Pre-discovered Areas . | . . . Known Exits Taken . | . . . Unknown Exits Taken 2 | 1 1 . Scrap Searched . | . . . Spaces Dug . | . . . Terrain Destroyed 28 | . 28 . Melee . | . . . Projectile . | . . . AOE 28 | . 28 . Terrain Rammed . | . . . Walls Destroyed . | . . . Machines Disabled . | . . . Actions | -11 -10 -10 --------- Run | Scr Mat Min Total 556 | 40 398 118 Wait 22 | 6 14 2 Move 439 | 26 303 110 Hop . | . . . Pick Up 11 | . 11 . Fast Attach 1 | 1 . . Attach 6 | . 3 3 Detach . | . . . Swap 7 | . 7 . Drop 6 | 2 4 . Fire 64 | 5 56 3 Melee . | . . . Ram . | . . . Kick . | . . . Crush . | . . . Escape Stasis . | . . . Rewire . | . . . Trap . | . . . Miscellaneous . | . . . Route ------- -11/Scrapyard -10/Materials (discovered 2 exits: [*Mat] / *Min) -10/Mines History --------- Turn | Location | Event 1 | -11/Scrapyard | Discovered new exit (range 3) 56 | -11/Scrapyard | Entered Materials 294 | -10/Materials | Discovered new exit (range 13) 307 | -10/Materials | Build established: Mutant 594 | -10/Materials | Core integrity fell below 50% 673 | -10/Materials | Discovered new exit (range 16) 697 | -10/Materials | Entered Mines 798 | -10/Mines | Assembled infested the area 803 | -10/Mines | Assisted by a Guerilla fighting off Assembled 862 | -10/Mines | Core integrity fell below 20% 877 | -10/Mines | Destroyed by G-47 Trooper with Particle Gun Last Messages --------------- coming from, and they're closing on this area, come on!" 00814_ K-01 Serf collects debris. 00815_ VA-VN8(h) heat spikes uncontrollably. 00817_ VA-VN8(h) heat damages core (-14). 00817_ VA-VN8(h) critical meltdown. 00819_ K-01 Serf collects debris. 00829_ as-33596 sneak attacks. 00837_ Grenade Launcher destroyed. 00839_ as-33596 destroyed. 00841_ Lgt. Assault Rifle destroyed. 00861_ Knocked back. 00861_ G-34 Mercenary destroyed. 00864_ Knocked back. 00868_ K-01 Serf collects debris. 00870_ Aluminum Leg destroyed. 00870_ System corrupted by crushing effect (+3). 00872_ U-05 Engineer sends out distress signal. 00873_ System corrupted: Component data lost. 00874_ U-05 Engineer destroyed. 00874_ Ion Engine destroyed. Map ----- +----------------------------------------------------+ | | | | | | | ?????????????????????????????????????????????????? | | ?????????????????????????????????????????????????? | | ?????????????????????????????????????????????????? | | ?????????????????????????????????????????????????? | | ?????????????????????????????????????????????????? | | ?????????????????????????????????????????????????? | | ??????????????## ????????????????????????????? | | ???????????????## ????????????????????????????? | | ????????????????## ????????????????????????????? | | ???????#?????????# ????????????????????????????? | | ???????????#???### ????????????????????????????? | | ?????????#????### ?#####??????????????????????? | | ???????????#?## ? ##?????????????????????? | | ?????????????# ? ###???????????????????? | | ######???????# ?? t ????????????????????? | | #??#??#?## ?? ????????????????????? | | """ #???#????# #?? ?????????????????????? | | """ #????????# #??# ?????????????????????? | | """ #????????## #?# ??????????????????????? | | """ #??????#??## ## ??????????????????????? | | #########??## ##r #??????????????????????? | | T# #?#?## ## g#??????????????????????? | | ## !!! ##???# ## @#??????????????????????? | | ###### ! ! #?### ## a##?????????????????????? | | #????# ! ! #??# ## =#?????????????????????? | | #??#?# !!! ##?# ## a%#?#?????#?????????????? | | #????# #### ##a =#?????????????????????? | | ########## ### #?????????????????????? | | #?### #?# ### a #?????????????????????? | | ##### ##### ### ### ! #?????????????????????? | | ????# #?# ## =%*#?????????????????????? | | ???######## #?# ## = #?????????????????????? | | ????#?#??## ### ## ###%[#?????????????????????? | | ???######## ## ###?? #?????????????????????? | | #?#?# % ###### #???? #???#????????????????? | | #??## ##### ###### ### #???????????????????? | | #?#?# #???# #???????????????????? | | ???## #???######## ##???????????????????? | | #?## ###??????#?##### ##????????????????????? | | ?## ##????????#????? ##?????????????????????? | | ## ##????????????? #??????????????????????? | | #???????????????##??????????????????????? | | #?#?????????????????????????????????????? | | """ #####????????????????????????????????????? | | """ #????????????????????????????????????? | | """ #????????????????????????????????????? | | ###% #????????????????????????????????????? | +----------------------------------------------------+ Best States ------------- Heat Dissipation 25 Energy Generation 10 Energy Capacity 250 Matter Stores 300 Matter Capacity 300 Sight Range 16 Terrain Scan Range 16 Terrain Scan Density 10 Evasion (%) 40 Item Schematics ----------------- None Robot Schematics ------------------ None Fabricated ------------ Nothing Alien Tech Used ----------------- None Achievements -------------- None Challenges ------------ None Game ------ Seed SurgeWeightScythe Manual? 0 Play Time 00:07:53 Cumulative 166.3 hours Start 2021.11.05 @ 22:10:06 End 2021.11.05 @ 22:16:22 Sessions 1 Manual Loads 0 Difficulty Rogue Special Mode None Game No. 226 Rogue 150 Adventurer 0 Explorer 76 Win Type - Total 34 Types 25/1/4/3/1/0/0/0/0 Lore% 88 Gallery% 82 Achievement% 60 Wizard Run 0 Options --------- ASCII 0 Keyboard 0 Movement Numpad Keybinds 1 Fullscreen 2 Font 18/X11 Map View 76x50 Tactical HUD 1 Map Filters NONE Filters NONE Steam 1 RUN: 34da57c3-cedd-4819-9055-3cc56047a33c